fUSD/lending_fUSD_20250109
["ID","MTS","AMOUNT","RATE_DAILY","PERIOD"]
[348215881,1736395848995,-500.0,0.00010134,2]
[348215882,1736395849005,-500.0,0.00010134,2]
[348215883,1736395849015,-500.0,0.00010134,2]
[348215884,1736395849024,-500.0,0.00010134,2]
[348215885,1736395849034,-500.0,0.00010134,2]
[348215886,1736395849044,-500.0,0.00010134,2]
[348215887,1736395849053,-500.0,0.00010134,2]
[348215888,1736395849064,-506.26628938,0.00010134,2]
[348215889,1736395849074,-500.0,0.00010134,2]
[348215890,1736395849084,-500.0,0.00010134,2]
[348215891,1736395849094,-500.0,0.00010134,2]
[348215892,1736395849103,-500.0,0.00010134,2]
[348215893,1736395849113,-500.0,0.00010134,2]
[348215894,1736395849123,-500.0,0.00010134,2]
[348215895,1736395849132,-500.0,0.00010134,2]
[348215896,1736395849142,-508.57479135,0.00010134,2]
[348215897,1736395849153,-503.75259946,0.00010134,2]
[348215898,1736395849162,-500.0,0.00010134,2]
[348215899,1736395849171,-500.0,0.00010134,2]
[348215900,1736395849181,-500.0,0.00010134,2]
[348215901,1736395849190,-500.0,0.00010134,2]
[348215902,1736395849200,-500.0,0.00010134,2]
[348215903,1736395849209,-500.0,0.00010134,2]
[348215904,1736395849219,-503.41287377,0.00010134,2]
[348215905,1736395849231,-500.0,0.00010134,2]
[348215906,1736395849240,-186.5337151,0.00010134,2]
[348215907,1736395849250,-502.18278152,0.00010134,2]
[348215908,1736395849260,-500.0,0.00010134,2]
[348215909,1736395849270,-501.47171263,0.00010134,2]
[348215910,1736395849281,-500.0,0.00010134,2]
[348215911,1736395849291,-504.76809228,0.00010134,2]
[348215912,1736395849301,-500.0,0.00010134,2]
[348215913,1736395849310,-500.0,0.00010134,2]
[348215914,1736395849320,-500.0,0.00010134,2]
[348215915,1736395849329,-500.0,0.00010134,2]
[348215916,1736395849338,-504.6074124,0.00010134,2]
[348215917,1736395849348,-503.2562388,0.00010134,2]
[348215918,1736395849357,-593.13075326,0.00010134,2]
[348215919,1736395849367,-506.51240206,0.00010134,2]
[348215920,1736395849376,-500.0,0.00010134,2]
[348215921,1736395849386,-500.0,0.00010134,2]
[348215922,1736395849395,-506.82808365,0.00010134,2]
[348215923,1736395849404,-502.87448998,0.00010134,2]
[348215924,1736395849413,-500.0,0.00010134,2]
[348215925,1736395849423,-508.84964815,0.00010134,2]
[348215926,1736395849432,-500.0,0.00010134,2]
[348215927,1736395849441,-504.72555264,0.00010134,2]
[348215928,1736395849451,-500.0,0.00010134,2]
[348215929,1736395849460,-500.0,0.00010134,2]
[348215930,1736395849470,-507.08726394,0.00010134,2]
[348215931,1736395849480,-500.0,0.00010134,2]
[348215932,1736395849489,-502.97779163,0.00010134,2]
[348215933,1736395849498,-500.0,0.00010134,2]
[348215934,1736395849508,-504.34462935,0.00010134,2]
[348215935,1736395849517,-504.6344436,0.00010134,2]
[348215936,1736395849527,-500.0,0.00010134,2]
[348215937,1736395849536,-503.82844707,0.00010134,2]
[348215938,1736395849546,-504.62777798,0.00010134,2]
[348215939,1736395849556,-500.0,0.00010134,2]
[348215940,1736395849566,-353.23173824,0.00010134,2]
[348215941,1736395849576,-500.0,0.00010134,2]
[348215942,1736395849585,-385.9972437,0.00010134,2]
[348215943,1736395849595,-509.53597813,0.00010134,2]
[348215944,1736395849604,-500.8680478,0.00010134,2]
[348215945,1736395849614,-500.0,0.00010134,2]
[348215946,1736395849624,-500.0,0.00010134,2]
[348215947,1736395849634,-506.7827541,0.00010134,2]
[348215948,1736395849645,-500.0,0.00010134,2]
[348215949,1736395849654,-322.58591222,0.00010134,2]
[348215950,1736395849671,-177.41408778,0.00010134,2]
[348215951,1736395849679,-502.42138833,0.00010134,2]
[348215952,1736395849689,-504.97002489,0.00010134,2]
[348215953,1736395849699,-500.0,0.00010134,2]
[348215954,1736395849711,-506.09699707,0.00010134,2]
[348215955,1736395849720,-500.0,0.00010134,2]
[348215956,1736395849730,-500.0,0.00010134,2]
[348215957,1736395849742,-504.74967451,0.00010134,2]
[348215958,1736395849752,-500.0,0.00010134,2]
[348215959,1736395849761,-500.0,0.00010134,2]
[348215960,1736395849771,-500.0,0.00010134,2]
[348215961,1736395849781,-512.65967616,0.00010134,2]
[348215962,1736395849790,-500.0,0.00010134,2]
[348215963,1736395849799,-500.0,0.00010134,2]
[348215964,1736395849809,-500.0,0.00010134,2]
[348215965,1736395849821,-500.0,0.00010134,2]
[348215966,1736395849830,-500.0,0.00010134,2]
[348215967,1736395849839,-500.0,0.00010134,2]
[348215968,1736395849849,-500.0,0.00010134,2]
[348215969,1736395849858,-502.88659175,0.00010134,2]
[348215970,1736395849867,-1353.67,0.00010134,2]
[348215971,1736395849877,-500.0,0.00010134,2]
[348215972,1736395849886,-500.0,0.00010134,2]
[348215973,1736395849895,-1137.14,0.00010134,2]
[348215974,1736395849905,-500.0,0.00010134,2]
[348215975,1736395849915,-500.0,0.00010134,2]
[348215976,1736395849924,-500.0,0.00010134,2]
[348215977,1736395849933,-500.0,0.00010134,2]
[348215978,1736395849943,-358.7240012,0.00010134,2]
[348215979,1736395849952,-638.91,0.00010134,2]
[348215980,1736395849961,-500.0,0.00010134,2]
[348215981,1736395849970,-500.0,0.00010134,2]
[348215982,1736395849979,-504.37084967,0.00010134,2]
[348215983,1736395849989,-492.43788004,0.00010134,2]
[348215984,1736395849999,-502.03303819,0.00010134,2]
[348215985,1736395850008,-500.0,0.00010134,2]
[348215986,1736395850018,-500.0,0.00010134,2]
[348215987,1736395850027,-500.0,0.00010134,2]
[348215988,1736395850037,-509.05470448,0.00010134,2]
[348215989,1736395850047,-500.0,0.00010134,2]
[348215990,1736395850056,-502.48593069,0.00010134,2]
[348215991,1736395850066,-517.01127769,0.00010134,2]
[348215992,1736395850075,-4100.85173248,0.00010135,4]
[348215993,1736395850085,-655.13,0.00010137,2]
[348215994,1736395850094,-5153.2472,0.00010172,2]
[348215995,1736395850104,-150.0,0.00010183,2]
[348215996,1736395850113,-1500.0,0.00010205,2]
[348215997,1736395850123,-411.50007745,0.0001021,2]
[348215998,1736395850133,-150.0,0.00010211,2]
[348215999,1736395850142,-500.0,0.00010271,2]
[348216000,1736395850152,-506.41142844,0.00010271,2]
[348216001,1736395850162,-504.55668458,0.00010271,2]
[348216002,1736395850172,-500.0,0.00010271,2]
[348216003,1736395850181,-500.0,0.00010271,2]
[348216004,1736395850190,-500.39643451,0.00010271,2]
[348216005,1736395850199,-502.17889264,0.00010271,2]
[348216006,1736395850209,-500.0,0.00010271,2]
[348216007,1736395850261,-502.90521253,0.00010271,2]
[348216008,1736395850270,-500.0,0.00010271,2]
[348216009,1736395850280,-501.33229779,0.00010271,2]
[348216010,1736395850291,-501.04959138,0.00010271,2]
[348216011,1736395850301,-500.0,0.00010271,2]
[348216012,1736395850310,-500.0,0.00010271,2]
[348216013,1736395850319,-500.0,0.00010271,2]
[348216014,1736395850328,-501.65577755,0.00010271,2]
[348216015,1736395850337,-512.90448819,0.00010271,2]
[348216016,1736395850346,-500.0,0.00010271,2]
[348216017,1736395850355,-502.72797594,0.00010271,2]
[348216018,1736395850365,-501.50213467,0.00010271,2]
[348216019,1736395850374,-502.64492259,0.00010271,2]
[348216020,1736395850383,-504.695144,0.00010271,2]
[348216021,1736395850393,-601.58030528,0.00010271,2]
[348216022,1736395850403,-500.0,0.00010271,2]
[348216023,1736395850411,-500.0,0.00010271,2]
[348216024,1736395850421,-500.0,0.00010271,2]
[348216025,1736395850430,-500.0,0.00010271,2]
[348216026,1736395850439,-500.0,0.00010271,2]
[348216027,1736395850449,-500.0,0.00010271,2]
[348216028,1736395850460,-505.85058463,0.00010271,2]
[348216029,1736395850469,-500.0,0.00010271,2]
[348216030,1736395850479,-501.23687724,0.00010271,2]
[348216031,1736395850487,-500.0,0.00010271,2]
[348216032,1736395850496,-500.0,0.00010271,2]
[348216033,1736395850506,-500.0,0.00010271,2]
[348216034,1736395850515,-509.61114848,0.00010271,2]
[348216035,1736395850524,-532.79,0.00010271,2]
[348216036,1736395850534,-500.0,0.00010271,2]
[348216037,1736395850544,-516.61932402,0.00010271,2]
[348216038,1736395850553,-502.05378049,0.00010271,2]
[348216039,1736395850562,-500.0,0.00010271,2]
[348216040,1736395850571,-500.0,0.00010271,2]
[348216041,1736395850581,-502.61471287,0.00010271,2]
[348216042,1736395850591,-513.71165902,0.00010271,2]
[348216043,1736395850602,-539.94852548,0.00010271,2]
[348216044,1736395850611,-500.0,0.00010271,2]
[348216045,1736395850621,-500.0,0.00010271,2]
[348216046,1736395850631,-500.0,0.00010271,2]
[348216047,1736395850640,-504.8778588,0.00010271,2]
[348216048,1736395850649,-33.1531065,0.00010271,2]
[348216049,1736395850663,-268.16958968,0.00010271,2]
[348216050,1736395850673,-198.67730382,0.00010271,2]
[348216051,1736395850683,-500.0,0.00010271,2]
[348216052,1736395850692,-500.0,0.00010271,2]
[348216053,1736395850701,-500.0,0.00010271,2]
[348216054,1736395850711,-500.0,0.00010271,2]
[348216055,1736395850720,-500.0,0.00010271,2]
[348216056,1736395850730,-500.0,0.00010271,2]
[348216057,1736395850742,-500.0,0.00010271,2]
[348216058,1736395850752,-500.0,0.00010271,2]
[348216059,1736395850762,-500.0,0.00010271,2]
[348216060,1736395850771,-500.0,0.00010271,2]
[348216061,1736395850781,-500.0,0.00010271,2]
[348216062,1736395850790,-500.0,0.00010271,2]
[348216063,1736395850799,-500.0,0.00010271,2]
[348216064,1736395850809,-500.0,0.00010271,2]
[348216065,1736395850819,-640.94,0.00010271,2]
[348216066,1736395850829,-500.0,0.00010271,2]
[348216067,1736395850838,-500.0,0.00010271,2]
[348216068,1736395850847,-500.0,0.00010271,2]
[348216069,1736395850856,-500.0,0.00010271,2]
[348216070,1736395850866,-500.0,0.00010271,2]
[348216071,1736395850875,-500.0,0.00010271,2]
[348216072,1736395850884,-621.33,0.00010271,2]
[348216073,1736395850894,-500.0,0.00010271,2]
[348216074,1736395850903,-500.0,0.00010271,2]
[348216075,1736395850913,-500.0,0.00010271,2]
[348216076,1736395850922,-500.0,0.00010271,2]
[348216077,1736395850931,-210.45618746,0.00010271,2]
[348216078,1736395850941,-500.0,0.00010271,2]
[348216079,1736395850950,-500.0,0.00010271,2]
[348216080,1736395850959,-500.0,0.00010271,2]
[348216081,1736395850968,-500.0,0.00010271,2]
[348216082,1736395850977,-500.0,0.00010271,2]
[348216083,1736395850987,-500.0,0.00010271,2]
[348216084,1736395850996,-500.0,0.00010271,2]
[348216085,1736395851005,-500.0,0.00010271,2]
[348216086,1736395851015,-500.0,0.00010271,2]
[348216087,1736395851025,-500.0,0.00010271,2]
[348216088,1736395851034,-500.0,0.00010271,2]
[348216089,1736395851043,-500.0,0.00010271,2]
[348216090,1736395851052,-500.0,0.00010271,2]
[348216091,1736395851061,-195.78382792,0.00010271,2]
[348216092,1736395851076,-305.11902656,0.00010271,2]
[348216093,1736395851085,-500.0,0.00010271,2]
[348216094,1736395851094,-500.0,0.00010271,2]
[348216095,1736395851103,-500.65254395,0.00010271,2]
[348216096,1736395851112,-500.0,0.00010271,2]
[348216097,1736395851122,-500.0,0.00010271,2]
[348216098,1736395851131,-500.0,0.00010271,2]
[348216099,1736395851140,-500.0,0.00010271,2]
[348216100,1736395851150,-500.0,0.00010271,2]
[348216101,1736395851162,-500.0,0.00010271,2]
[348216102,1736395851172,-500.0,0.00010271,2]
[348216103,1736395851181,-500.0,0.00010271,2]
[348216104,1736395851190,-500.0,0.00010271,2]
[348216105,1736395851199,-557.72,0.00010271,2]
[348216106,1736395851209,-500.0,0.00010271,2]
[348216107,1736395851218,-500.0,0.00010271,2]
[348216108,1736395851227,-500.0,0.00010271,2]
[348216109,1736395851236,-500.0,0.00010271,2]
[348216110,1736395851246,-516.93,0.00010271,2]
[348216111,1736395851255,-500.0,0.00010271,2]
[348216112,1736395851265,-500.0,0.00010271,2]
[348216113,1736395851274,-500.0,0.00010271,2]
[348216114,1736395851283,-500.0,0.00010271,2]
[348216115,1736395851292,-500.0,0.00010271,2]
[348216116,1736395851301,-500.0,0.00010271,2]
[348216117,1736395851310,-510.89376916,0.00010271,2]
[348216118,1736395851319,-500.0,0.00010271,2]
[348216119,1736395851330,-500.0,0.00010271,2]
[348216120,1736395851339,-500.0,0.00010271,2]
[348216121,1736395851348,-500.0,0.00010271,2]
[348216122,1736395851356,-500.0,0.00010271,2]
[348216123,1736395851365,-500.0,0.00010271,2]
[348216124,1736395851375,-500.0,0.00010271,2]
[348216125,1736395851384,-500.0,0.00010271,2]
[348216126,1736395851393,-500.0,0.00010271,2]
[348216127,1736395851402,-500.0,0.00010271,2]
[348216128,1736395851411,-500.0,0.00010271,2]
[348216129,1736395851420,-500.0,0.00010271,2]
[348216130,1736395851429,-500.0,0.00010271,2]
[348216131,1736395851440,-400.0,0.00010271,2]
[348216132,1736395851449,-500.0,0.00010271,2]
[348216133,1736395851459,-500.0,0.00010271,2]
[348216134,1736395851468,-599.81024797,0.00010271,2]
[348216135,1736395851477,-500.0,0.00010271,2]
[348216136,1736395851486,-500.0,0.00010271,2]
[348216137,1736395851496,-500.0,0.00010271,2]
[348216138,1736395851504,-500.0,0.00010271,2]
[348216139,1736395851514,-500.0,0.00010271,2]
[348216140,1736395851523,-500.0,0.00010271,2]
[348216141,1736395851532,-500.0,0.00010271,2]
[348216142,1736395851540,-500.0,0.00010271,2]
[348216143,1736395851550,-500.0,0.00010271,2]
[348216144,1736395851559,-500.0,0.00010271,2]
[348216145,1736395851568,-500.0,0.00010271,2]
[348216146,1736395851578,-500.0,0.00010271,2]
[348216147,1736395851587,-500.0,0.00010271,2]
[348216148,1736395851595,-500.0,0.00010271,2]
[348216149,1736395851604,-500.0,0.00010271,2]
[348216150,1736395851613,-500.0,0.00010271,2]
[348216151,1736395851622,-500.0,0.00010271,2]
[348216152,1736395851631,-500.0,0.00010271,2]
[348216153,1736395851640,-500.0,0.00010271,2]
[348216154,1736395851650,-500.0,0.00010271,2]
[348216155,1736395851659,-500.0,0.00010271,2]
[348216156,1736395851668,-500.0,0.00010271,2]
[348216157,1736395851677,-500.0,0.00010271,2]
[348216158,1736395851686,-500.0,0.00010271,2]
[348216159,1736395851695,-500.0,0.00010271,2]
[348216160,1736395851704,-500.0,0.00010271,2]
[348216161,1736395851713,-500.0,0.00010271,2]
[348216162,1736395851722,-500.0,0.00010271,2]
[348216163,1736395851732,-500.0,0.00010271,2]
[348216164,1736395851745,-500.0,0.00010271,2]
[348216165,1736395851754,-500.0,0.00010271,2]
[348216166,1736395851763,-500.0,0.00010271,2]
[348216167,1736395851772,-500.0,0.00010271,2]
[348216168,1736395851782,-500.0,0.00010271,2]
[348216169,1736395851792,-500.0,0.00010271,2]
[348216170,1736395851801,-500.0,0.00010271,2]
[348216171,1736395851810,-548.75420821,0.00010271,2]
[348216172,1736395851819,-500.0,0.00010271,2]
[348216173,1736395851828,-500.0,0.00010271,2]
[348216174,1736395851838,-500.0,0.00010271,2]
[348216175,1736395851847,-500.0,0.00010271,2]
[348216176,1736395851857,-500.0,0.00010271,2]
[348216177,1736395851866,-500.0,0.00010271,2]
[348216178,1736395851875,-500.0,0.00010271,2]
[348216179,1736395851884,-503.59147061,0.00010271,2]
[348216180,1736395851893,-500.0,0.00010271,2]
[348216181,1736395851903,-500.0,0.00010271,2]
[348216182,1736395851912,-500.0,0.00010271,2]
[348216183,1736395851922,-500.0,0.00010271,2]
[348216184,1736395851931,-326.65144547,0.00010271,2]
[348216185,1736395851941,-500.0,0.00010271,2]
[348216186,1736395851951,-500.0,0.00010271,2]
[348216187,1736395851960,-500.0,0.00010271,2]
[348216188,1736395851970,-506.77031748,0.00010271,2]
[348216189,1736395851979,-500.0,0.00010271,2]
[348216190,1736395851988,-500.0,0.00010271,2]
[348216191,1736395851997,-500.0,0.00010271,2]
[348216192,1736395852008,-560.2,0.00010271,2]
[348216193,1736395852017,-519.75245715,0.00010271,2]
[348216194,1736395852026,-500.0,0.00010271,2]
[348216195,1736395852035,-500.0,0.00010271,2]
[348216196,1736395852044,-500.0,0.00010271,2]
[348216197,1736395852053,-500.0,0.00010271,2]
[348216198,1736395852063,-500.0,0.00010271,2]
[348216199,1736395852071,-500.0,0.00010271,2]
[348216200,1736395852081,-505.16889511,0.00010271,2]
[348216201,1736395852090,-500.0,0.00010271,2]
[348216202,1736395852099,-502.62880032,0.00010271,2]
[348216203,1736395852108,-500.0,0.00010271,2]
[348216204,1736395852117,-500.0,0.00010271,2]
[348216205,1736395852126,-500.0,0.00010271,2]
[348216206,1736395852135,-500.0,0.00010271,2]
[348216207,1736395852145,-500.0,0.00010271,2]
[348216208,1736395852154,-500.0,0.00010271,2]
[348216209,1736395852163,-500.0,0.00010271,2]
[348216210,1736395852172,-500.0,0.00010271,2]
[348216211,1736395852182,-504.64977604,0.00010271,2]
[348216212,1736395852191,-500.0,0.00010271,2]
[348216213,1736395852201,-483.28300181,0.00010271,2]
[348216214,1736395884163,830.59,8.219e-05,2]
[348216216,1736396577068,150.0,8.278e-05,2]
[348216217,1736396577144,150.0,8.221e-05,2]
[348216218,1736396577180,150.0,8.059e-05,2]
[348216221,1736396756464,150.0,8.225e-05,2]
[348216222,1736396756632,150.0,7.617e-05,2]
[348216223,1736396756719,150.0,8.136e-05,2]
[348216224,1736396765008,932.7,8.219e-05,2]
[348216226,1736396816502,150.0,8.093e-05,2]
[348216234,1736396837078,353.51,8.492e-05,2]
[348216244,1736397032127,-150.0,8.544e-05,2]
[348216246,1736397032137,-250.0,8.586e-05,2]
[348216247,1736397032148,-586.89,8.587e-05,2]
[348216248,1736397032157,-150.0,8.612e-05,2]
[348216249,1736397032166,-150.0,8.668e-05,2]
[348216250,1736397032176,-120.17112803,8.726e-05,2]
[348216251,1736397032188,-879.82887197,8.726e-05,2]
[348216252,1736397032198,-67.48128237,8.771e-05,2]
[348216253,1736397032347,-82.51871763,8.771e-05,2]
[348216254,1736397032356,-150.0,8.856e-05,2]
[348216255,1736397032365,-150.0,8.871e-05,2]
[348216256,1736397032374,-150.0,8.967e-05,2]
[348216257,1736397032383,-150.0,9.061e-05,2]
[348216258,1736397032392,-150.0,9.069e-05,2]
[348216259,1736397032401,-150.0,9.069e-05,2]
[348216260,1736397032410,-150.0,9.072e-05,2]
[348216261,1736397032419,-150.0,9.119e-05,2]
[348216262,1736397032428,-150.0,9.122e-05,2]
[348216263,1736397032437,-150.0,9.137e-05,2]
[348216264,1736397032446,-150.0,9.146e-05,2]
[348216265,1736397032456,-150.0,9.251e-05,2]
[348216266,1736397032465,-150.0,9.285e-05,2]
[348216267,1736397032475,-900.0,9.3e-05,3]
[348216268,1736397032483,-150.0,9.369e-05,2]
[348216269,1736397032493,-150.0,9.379e-05,2]
[348216270,1736397032502,-1800.0,9.4e-05,3]
[348216271,1736397032513,-150.0,9.409e-05,2]
[348216272,1736397032522,-777.3,9.425e-05,2]
[348216273,1736397032532,-443.79,9.425e-05,2]
[348216274,1736397032542,-1010.3,9.451e-05,2]
[348216275,1736397032552,-1012.59,9.451e-05,2]
[348216276,1736397032561,-1010.6,9.451e-05,2]
[348216277,1736397032571,-1019.27,9.451e-05,2]
[348216278,1736397032581,-995.3,9.451e-05,2]
[348216279,1736397032590,-989.98,9.451e-05,2]
[348216280,1736397032600,-987.07,9.451e-05,2]
[348216281,1736397032609,-987.51,9.452e-05,2]
[348216282,1736397032619,-995.92,9.452e-05,2]
[348216283,1736397032627,-1017.01,9.452e-05,2]
[348216284,1736397032637,-982.57,9.452e-05,2]
[348216286,1736397032647,-989.61,9.452e-05,2]
[348216288,1736397032656,-1003.83,9.452e-05,2]
[348216290,1736397032666,-982.91,9.452e-05,2]
[348216292,1736397032675,-993.29,9.452e-05,2]
[348216294,1736397032685,-1005.68,9.452e-05,2]
[348216296,1736397032694,-1019.02,9.452e-05,2]
[348216299,1736397032923,-1016.75,9.452e-05,2]
[348216300,1736397032935,-991.88,9.453e-05,2]
[348216301,1736397032944,-1008.46,9.453e-05,2]
[348216302,1736397032954,-992.31,9.454e-05,2]
[348216303,1736397032963,-1019.33,9.454e-05,2]
[348216304,1736397032972,-983.86,9.455e-05,2]
[348216305,1736397032983,-995.64,9.457e-05,2]
[348216306,1736397032992,-150.0,9.458e-05,2]
[348216307,1736397033001,-1005.03,9.459e-05,2]
[348216308,1736397033011,-984.87,9.461e-05,2]
[348216309,1736397033020,-1005.75,9.464e-05,2]
[348216310,1736397033029,-1007.9,9.469e-05,2]
[348216311,1736397033039,-997.43,9.475e-05,2]
[348216312,1736397033048,-1001.28,9.484e-05,2]
[348216313,1736397033059,-994.78,9.495e-05,2]
[348216314,1736397033069,-2700.0,9.5e-05,3]
[348216315,1736397033079,-150.0,9.507e-05,2]
[348216316,1736397033089,-995.96,9.511e-05,2]
[348216317,1736397033101,-1010.95,9.532e-05,2]
[348216318,1736397033110,-150.0,9.535e-05,2]
[348216319,1736397033120,-1017.91,9.559e-05,2]
[348216320,1736397033131,-150.0,9.586e-05,2]
[348216321,1736397033141,-987.08,9.598e-05,2]
[348216322,1736397033150,-3600.0,9.6e-05,3]
[348216323,1736397033160,-150.0,9.639e-05,2]
[348216324,1736397033170,-1018.42,9.649e-05,2]
[348216325,1736397033179,-150.0,9.659e-05,2]
[348216326,1736397033189,-586.89,9.66e-05,2]
[348216327,1736397033198,-4600.0,9.7e-05,3]
[348216328,1736397033207,-982.42,9.72e-05,2]
[348216329,1736397033217,-150.0,9.73e-05,2]
[348216330,1736397033227,-10524.51080826,9.8e-05,2]
[348216331,1736397033236,-900.0,9.8e-05,3]
[348216332,1736397033246,-1000.0,9.817e-05,2]
[348216333,1736397033255,-980.02,9.817e-05,2]
[348216334,1736397033265,-440.24,9.836e-05,2]
[348216335,1736397033274,-150.0,9.864e-05,2]
[348216336,1736397033284,-150.0,9.869e-05,2]
[348216337,1736397033294,-150.0,9.87e-05,2]
[348216338,1736397033304,-500.0,9.899e-05,2]
[348216339,1736397033314,-500.0,9.899e-05,2]
[348216340,1736397033325,-500.0,9.899e-05,2]
[348216341,1736397033334,-500.0,9.899e-05,2]
[348216342,1736397033344,-1055.91,9.899e-05,2]
[348216343,1736397033354,-500.0,9.899e-05,2]
[348216344,1736397033363,-500.0,9.899e-05,2]
[348216345,1736397033373,-539.58,9.899e-05,2]
[348216346,1736397033382,-616.7,9.899e-05,2]
[348216347,1736397033391,-500.0,9.899e-05,2]
[348216348,1736397033401,-1318.06,9.899e-05,2]
[348216349,1736397033410,-500.0,9.899e-05,2]
[348216350,1736397033419,-500.0,9.899e-05,2]
[348216351,1736397033429,-500.0,9.899e-05,2]
[348216352,1736397033438,-500.0,9.899e-05,2]
[348216353,1736397033449,-500.0,9.899e-05,2]
[348216354,1736397033458,-500.0,9.899e-05,2]
[348216355,1736397033468,-500.0,9.899e-05,2]
[348216356,1736397033477,-861.19,9.899e-05,2]
[348216357,1736397033486,-500.0,9.899e-05,2]
[348216358,1736397033496,-500.0,9.899e-05,2]
[348216359,1736397033505,-590.4402194,9.899e-05,2]
[348216360,1736397033515,-500.0,9.899e-05,2]
[348216361,1736397033524,-500.0,9.899e-05,2]
[348216362,1736397033534,-500.0,9.899e-05,2]
[348216363,1736397033543,-500.0,9.899e-05,2]
[348216364,1736397033552,-761.82,9.899e-05,2]
[348216365,1736397033561,-500.99338287,9.899e-05,2]
[348216366,1736397033573,-500.0,9.899e-05,2]
[348216367,1736397033583,-164.75629214,9.899e-05,2]
[348216368,1736397033593,-501.1921838,9.899e-05,2]
[348216369,1736397033603,-500.0,9.899e-05,2]
[348216370,1736397033613,-825.62,9.899e-05,2]
[348216371,1736397033622,-327.81607913,9.899e-05,2]
[348216372,1736397033632,-500.0,9.899e-05,2]
[348216373,1736397033641,-500.0,9.899e-05,2]
[348216374,1736397033651,-500.0,9.899e-05,2]
[348216375,1736397033662,-504.978634,9.899e-05,2]
[348216376,1736397033672,-500.0,9.899e-05,2]
[348216377,1736397033682,-500.0,9.899e-05,2]
[348216378,1736397033692,-501.53275456,9.899e-05,2]
[348216379,1736397033702,-500.0,9.899e-05,2]
[348216380,1736397033712,-500.0,9.899e-05,2]
[348216381,1736397033722,-500.28169526,9.899e-05,2]
[348216382,1736397033732,-500.0,9.899e-05,2]
[348216383,1736397033742,-503.47857971,9.899e-05,2]
[348216384,1736397033752,-500.0,9.899e-05,2]
[348216385,1736397033762,-500.0,9.899e-05,2]
[348216386,1736397033771,-513.21322418,9.899e-05,2]
[348216387,1736397033781,-500.0,9.899e-05,2]
[348216388,1736397033793,-500.97022919,9.899e-05,2]
[348216389,1736397033803,-500.0,9.899e-05,2]
[348216390,1736397033813,-500.0,9.899e-05,2]
[348216391,1736397033828,-512.06316668,9.899e-05,2]
[348216392,1736397033839,-500.0,9.899e-05,2]
[348216393,1736397033849,-502.29980547,9.899e-05,2]
[348216394,1736397033860,-500.0,9.899e-05,2]
[348216395,1736397033870,-86655.66739005,9.9e-05,2]
[348216396,1736397033906,-3889.16593076,9.9e-05,2]
[348216397,1736397033919,-7699.27187077,9.9e-05,2]
[348216398,1736397033931,-291.47129049,9.9e-05,2]
[348216399,1736397033951,-5131.33265998,9.9e-05,2]
[348216400,1736397033962,-4793.7,9.9e-05,2]
[348216401,1736397033985,-132673.74433027,9.9e-05,2]
[348216402,1736397033995,-1117.78307558,9.9e-05,2]
[348216403,1736397034005,-900.0,9.9e-05,3]
[348216404,1736397034015,-150.0,9.914e-05,2]
[348216405,1736397034026,-382.12050205,9.941e-05,2]
[348216406,1736397034036,-991.96,9.948e-05,2]
[348216407,1736397034047,-1008.56,9.951e-05,2]
[348216408,1736397034057,-989.84,9.954e-05,2]
[348216409,1736397034068,-151.72,9.996e-05,2]